{"text_format":"1","workbook":"xlsx","n_sheets":3,"sheets":["تحويل التاريخ","حول البرنامج","Setup"],"not_rendered":{"charts":0,"images":4,"macros":1,"external_links":0,"defined_names":19,"comments":0,"pivot_tables":0},"unopened":[],"bounds":{"document_bytes":16777216,"sheet_cells":100000,"rows_first":2000,"rows_last":500,"rows_between":2000,"halvings":0,"cell_chars":16384,"cell_head_chars":4096},"cells_cut":0,"cells_raw":0,"read":"whole","date_system":"1900"}

{"sheet":"تحويل التاريخ","index":0,"n_rows":7,"n_cols":6,"rows_kept":7,"cut":false,"hidden":false,"merged":[[4,1,4,2],[2,1,2,2],[6,1,6,2],[0,1,0,15]]}
[]
[]
[null,"نوع التحويل المطلوب :"]
[]
[null,"خيارات الشهر :"]
[null,null,null,"   يوم","  شهر","    سنة"]
[null,"التاريخ المراد تحويله :"]

{"sheet":"حول البرنامج","index":1,"n_rows":15,"n_cols":2,"rows_kept":15,"cut":false,"hidden":false,"merged":[[12,0,12,18],[1,0,1,17],[2,0,2,17],[3,1,3,16],[4,1,4,16],[5,1,5,16],[11,1,11,16],[6,1,6,16],[7,1,7,16],[8,1,8,16],[9,1,9,16],[10,1,10,16],[13,1,13,16],[14,1,14,16],[15,1,15,16],[16,1,16,16],[17,1,17,16]]}
[]
[]
[]
[null,"نقدم لكم أفضل برامج الأعمال بمفاهيم لم يتطرق إليها أحد وأسعار لن تجدها في الحلم"]
[]
[null,"برنامج تحويل التاريخ ( مجاني )"]
[null,"توجد مجموعة من روابط تحميل البرنامج ضمن رابط الفيديو"]
[]
[null,"لا تنسي مشاهدة باقي فيديوهاتي والإطلاع علي أحدث برامجنا المطروحة حصريا ضمن قناتي علي اليوتيوب"]
[null,"عند البحث علي برامجنا أو أي برنامج قد تحتاجه - أكتب في جوجل إسم البرنامج المطلوب متبوعا بكلمة يوتيوب حيث أن برامجنا تطرح حصريا علي اليوتيوب"]
[null,"مثال البحث ... ( برنامج حضور وإنصراف يوتيوب )"]
[null,"أو تفضل بإرسال رسالة بالمطلوب علي البريد الإلكتروني"]
["hamadabasha69@gmail.com"]
[]
[null,"والله ولي التوفيق ،،،"]

{"sheet":"Setup","index":2,"n_rows":176,"n_cols":17,"rows_kept":176,"cut":false,"hidden":true,"merged":[[3,8,3,10],[1,2,1,3],[1,6,1,7],[1,8,1,11],[1,13,1,14]]}
[]
[null,0,"Convert Option",null,null,0,"Month Option",null,"Selected Values",null,null,null,null,"(From Hijri to Greg Steps)"]
[null,null,"تحويل تاريخ هجري إلي ميلادي",null,null,null,"إظهار رقم الشهر",null,0,0,0,{"$f":"K3+IF(c_o_result=1,1350-1,IF(c_o_result=2,1920-1,0))","v":0},null,"Conversion Formula Result","Input Hijri Date"]
[null,null,"تحويل تاريخ ميلادي إلي هجري",null,null,null,"إظهار أسم الشهر",null,"Shown Values",null,null,null,null,{"$f":"IF(c_o_result=1,IF(AND(c_o_result=1,S_day<31),((s_actual_year+((((S_Month-1)*30)+S_day)/360))/1.030684)+621.5643,0),\"\")","v":""},{"$f":"IF(c_o_result=1,TEXT(s_actual_year,\"0000\")&\"/\"&TEXT(S_Month,\"00\")&\"/\"&TEXT(S_day,\"00\"),\"\")","v":""}]
[null,"هجري/ميلادي","هجري","ميلادي","هجري","ميلادي","رقم الشهر","Days","Months","Years",null,"Result Greg Date",null,"Equivalent Greg Year","Sug. Hijri (As Text)"]
[null,1,"محرم","يناير",1350,1920,1,{"$f":"IF($B$2>0,B6,\"\")","v":""},{"$f":"IF($F$2=1,G6,IF($B$2=1,C6,IF($B$2=2,D6,\"\")))","v":""},{"$f":"IF($B$2=1,E6,IF($B$2=2,F6,\"\"))","v":""},null,{"$f":"IF(O4=O8,N28,IF(O4=O10,N30,IF(O4=O12,N32,IF(O4=O14,N34,N26))))","v":""},null,{"$f":"IF(c_o_result=1,INT(N4),\"\")","v":""},{"$f":"IF(c_o_result=1,TEXT(O26,\"[$-1970000]B2yyyy/mm/dd;@\"),\"\")","v":""}]
[null,2,"صفر","فبراير",1351,1921,2,{"$f":"IF($B$2>0,B7,\"\")","v":""},{"$f":"IF($F$2=1,G7,IF($B$2=1,C7,IF($B$2=2,D7,\"\")))","v":""},{"$f":"IF($B$2=1,E7,IF($B$2=2,F7,\"\"))","v":""},null,"Result Hijri Date",null,"Greg Month & Day","Sug. Hijri +1 (As Text)"]
[null,3,"ربيع أول","مارس",1352,1922,3,{"$f":"IF($B$2>0,B8,\"\")","v":""},"","",null,{"$f":"IF(c_o_result=2,DATE(s_actual_year,S_Month,S_day),\"\")","v":""},null,{"$f":"IF(c_o_result=1,((N4-INT(N4))*12),\"\")","v":""},{"$f":"IF(c_o_result=1,TEXT(O28,\"[$-1970000]B2yyyy/mm/dd;@\"),\"\")","v":""}]
[null,4,"ربيع ثاني","أبريل",1353,1923,4,"","","",null,"Shown Date",null,"Equivalent Greg Month","Sug. Hijri +2 (As Text)",null,{"$f":"TEXT(L8,\"[$-1970000]B2yyyy/m/d;@\")","v":""}]
[null,5,"جمادي أولي","مايو",1354,1924,5,"","","",null,{"$f":"IF(OR(AND(c_o_result=1,S_day>30),AND(c_o_result=2,OR(AND(S_Month=2,S_day>29),AND(S_Month=4,S_day>30),AND(S_Month=6,S_day>30),AND(S_Month=9,S_day>30),AND(S_Month=11,S_day>30)))),\"\",IF(c_o_result=2,TEXT(L8,\"[$-1970000]B2yyyy/mm/dd;@\"),TEXT(L6,\"yyyy/mm/dd\")))","v":""},null,{"$f":"IF(c_o_result=1,INT(N8)+1,\"\")","v":""},{"$f":"IF(c_o_result=1,TEXT(O30,\"[$-1970000]B2yyyy/mm/dd;@\"),\"\")","v":""}]
[null,6,"جمادي ثانية","يونيو",1355,1925,6,"","","",null,"Shown Date - Name",null,"Greg Day","Sug. Hijri - 1 (As Text)"]
[null,7,"رجب","يوليو",1356,1926,7,"","","",null,{"$f":"IF(L22=1,\"الأحد\",IF(L22=2,\"الأثنين\",IF(L22=3,\"الثلاثاء\",IF(L22=4,\"الأربعاء\",IF(L22=5,\"الخميس\",IF(L22=6,\"الجمعة\",IF(L22=7,\"السبت\",\"\")))))))","v":""},null,{"$f":"IF(c_o_result=1,(N8-INT(N8))*IF(N10=2,28,IF(OR(N10=4,N10=6,N10=9,N10=11),30,31)),\"\")","v":""},{"$f":"IF(c_o_result=1,TEXT(O32,\"[$-1970000]B2yyyy/mm/dd;@\"),\"\")","v":""}]
[null,8,"شعبان","أغسطس",1357,1927,8,"","","",null,"Shown Date - No",null,"Equivalent Greg Day","Sug. Hijri - 2 (As Text)",{"$f":"TEXT(L10,\"dddd\")","v":""}]
[null,9,"رمضان","سبتمبر",1358,1928,9,"","","",null,{"$f":"IF(ISBLANK(L10),\"\",IF(MID(L10,9,1)=\"0\",MID(L10,10,1),MID(L10,9,2)))","v":""},null,{"$f":"IF(c_o_result=1,INT(N12)+1,\"\")","v":""},{"$f":"IF(c_o_result=1,TEXT(O34,\"[$-1970000]B2yyyy/mm/dd;@\"),\"\")","v":""},{"$f":"TEXT(L10,\"mmmm\")","v":""}]
[null,10,"شوال","أكتوبر",1359,1929,10,"","","",null,"Shown Date - Month Name",null,"Day Option",null,{"$f":"TEXT(L10,\"yyyy\")","v":""}]
[null,11,"ذو القعدة","نوفمبر",1360,1930,11,"","","",null,{"$f":"IF(L18=\"\",\"\",IF(AND(c_o_result=1,VALUE(VALUE(L18))=1),\"يناير\",IF(AND(c_o_result=1,VALUE(L18)=2),\"فبراير\",IF(AND(c_o_result=1,VALUE(L18)=3),\"مارس\",IF(AND(c_o_result=1,VALUE(L18)=4),\"أبريل\",IF(AND(c_o_result=1,VALUE(L18)=5),\"مايو\",IF(AND(c_o_result=1,VALUE(L18)=6),\"يونيو\",IF(AND(c_o_result=1,VALUE(L18)=7),\"يولية\",IF(AND(c_o_result=1,VALUE(L18)=8),\"أغسطس\",IF(AND(c_o_result=1,VALUE(L18)=9),\"سبتمبر\",IF(AND(c_o_result=1,VALUE(L18)=10),\"أكتوبر\",IF(AND(c_o_result=1,VALUE(L18)=11),\"نوفمبر\",IF(AND(c_o_result=1,VALUE(L18)=12),\"ديسمبر\",IF(AND(c_o_result=2,VALUE(L18)=1),\"محرم\",IF(AND(c_o_result=2,VALUE(L18)=2),\"صفر\",IF(AND(c_o_result=2,VALUE(L18)=3),\"ربيع أول\",IF(AND(c_o_result=2,VALUE(L18)=4),\"ربيع ثاني\",IF(AND(c_o_result=2,VALUE(L18)=5),\"جمادي الأولي\",IF(AND(c_o_result=2,VALUE(L18)=6),\"جمادي الثانية\",IF(AND(c_o_result=2,VALUE(L18)=7),\"رجب\",IF(AND(c_o_result=2,VALUE(L18)=8),\"شعبان\",IF(AND(c_o_result=2,VALUE(L18)=9),\"رمضان\",IF(AND(c_o_result=2,VALUE(L18)=10),\"شوال\",IF(AND(c_o_result=2,VALUE(L18)=11),\"ذو القعدة\",IF(AND(c_o_result=2,VALUE(L18)=12),\"ذو الحجة\",\"\")))))))))))))))))))))))))","v":""},null,{"$f":"IF(N14=0,1,N14)","v":""}]
[null,12,"ذو الحجة","ديسمبر",1361,1931,12,"","","",null,"Shown Date - Month No",null,"Day Option+1"]
[null,13,null,null,1362,1932,null,"",null,"",null,{"$f":"IF(ISBLANK(L10),\"\",MID(L10,6,2))","v":""},null,{"$f":"IF(c_o_result=1,N16+1,\"\")","v":""}]
[null,14,null,null,1363,1933,null,"",null,"",null,"Shown Date - Year",null,"Day Option+2"]
[null,15,null,null,1364,1934,null,"",null,"",null,{"$f":"IF(ISBLANK(L10),\"\",LEFT(L10,4))","v":""},null,{"$f":"IF(c_o_result=1,N16+2,\"\")","v":""}]
[null,16,null,null,1365,1935,null,"",null,"",null,"Weekday No",null,"Day Option-1"]
[null,17,null,null,1366,1936,null,"",null,"",null,{"$f":"IF(c_o_result=1,WEEKDAY(L6),IF(c_o_result=2,WEEKDAY(L8),0))","v":0},null,{"$f":"IF(c_o_result=1,IF(N16>0,N16-1,0),\"\")","v":""}]
[null,18,null,null,1367,1937,null,"",null,"",null,"Year Symbol",null,"Day Option-2"]
[null,19,null,null,1368,1938,null,"",null,"",null,{"$f":"IF(c_o_result=1,\"م\",IF(c_o_result=2,\"هـ\",\"\"))","v":""},null,{"$f":"IF(c_o_result=1,IF(N16>1,N16-2,0),\"\")","v":""}]
[null,20,null,null,1369,1939,null,"",null,"",null,null,null,"Suggested Greg Date","Excel Eqv. Hijri "]
[null,21,null,null,1370,1940,null,"",null,"",null,null,null,{"$f":"IF(c_o_result=1,DATE(N6,N10,N16),\"\")","v":""},{"$f":"N26","v":""}]
[null,22,null,null,1371,1941,null,"",null,"",null,null,null,"Suggested Greg Date +1","Excel Eqv. Hijri +1"]
[null,23,null,null,1372,1942,null,"",null,"",null,null,null,{"$f":"IF(c_o_result=1,DATE(N6,N10,N18),\"\")","v":""},{"$f":"N28","v":""}]
[null,24,null,null,1373,1943,null,"",null,"",null,null,null,"Suggested Greg Date +2","Excel Eqv. Hijri +2"]
[null,25,null,null,1374,1944,null,"",null,"",null,null,null,{"$f":"IF(c_o_result=1,DATE(N6,N10,N20),\"\")","v":""},{"$f":"N30","v":""}]
[null,26,null,null,1375,1945,null,"",null,"",null,null,null,"Suggested Greg Date -1","Excel Eqv. Hijri -1"]
[null,27,null,null,1376,1946,null,"",null,"",null,null,null,{"$f":"IF(c_o_result=1,DATE(N6,N10,N22),\"\")","v":""},{"$f":"N32","v":""}]
[null,28,null,null,1377,1947,null,"",null,"",null,null,null,"Suggested Greg Date -2","Excel Eqv. Hijri -2"]
[null,29,null,null,1378,1948,null,"",null,"",null,null,null,{"$f":"IF(c_o_result=1,DATE(N6,N10,N24),\"\")","v":""},{"$f":"N34","v":""}]
[null,30,null,null,1379,1949,null,{"$f":"IF(OR($B$2=1,AND($B$2=2,S_Month<>2,S_Month<>\"فبراير\")),B35,\"\")","v":""},null,""]
[null,31,null,null,1380,1950,null,{"$f":"IF(AND($B$2=2,OR(S_Month=1,S_Month=3,S_Month=5,S_Month=7,S_Month=8,S_Month=10,S_Month=12)),B36,\"\")","v":""},null,""]
[null,null,null,null,1381,1951,null,null,null,""]
[null,null,null,null,1382,1952,null,null,null,""]
[null,null,null,null,1383,1953,null,null,null,""]
[null,null,null,null,1384,1954,null,null,null,""]
[null,null,null,null,1385,1955,null,null,null,""]
[null,null,null,null,1386,1956,null,null,null,""]
[null,null,null,null,1387,1957,null,null,null,""]
[null,null,null,null,1388,1958,null,null,null,""]
[null,null,null,null,1389,1959,null,null,null,""]
[null,null,null,null,1390,1960,null,null,null,""]
[null,null,null,null,1391,1961,null,null,null,""]
[null,null,null,null,1392,1962,null,null,null,""]
[null,null,null,null,1393,1963,null,null,null,""]
[null,null,null,null,1394,1964,null,null,null,""]
[null,null,null,null,1395,1965,null,null,null,""]
[null,null,null,null,1396,1966,null,null,null,""]
[null,null,null,null,1397,1967,null,null,null,""]
[null,null,null,null,1398,1968,null,null,null,""]
[null,null,null,null,1399,1969,null,null,null,""]
[null,null,null,null,1400,1970,null,null,null,""]
[null,null,null,null,1401,1971,null,null,null,""]
[null,null,null,null,1402,1972,null,null,null,""]
[null,null,null,null,1403,1973,null,null,null,""]
[null,null,null,null,1404,1974,null,null,null,""]
[null,null,null,null,1405,1975,null,null,null,""]
[null,null,null,null,1406,1976,null,null,null,""]
[null,null,null,null,1407,1977,null,null,null,""]
[null,null,null,null,1408,1978,null,null,null,""]
[null,null,null,null,1409,1979,null,null,null,""]
[null,null,null,null,1410,1980,null,null,null,""]
[null,null,null,null,1411,1981,null,null,null,""]
[null,null,null,null,1412,1982,null,null,null,""]
[null,null,null,null,1413,1983,null,null,null,""]
[null,null,null,null,1414,1984,null,null,null,""]
[null,null,null,null,1415,1985,null,null,null,{"$f":"IF($B$2=1,E71,IF($B$2=2,F71,\"\"))","v":""}]
[null,null,null,null,1416,1986,null,null,null,""]
[null,null,null,null,1417,1987,null,null,null,""]
[null,null,null,null,1418,1988,null,null,null,""]
[null,null,null,null,1419,1989,null,null,null,""]
[null,null,null,null,1420,1990,null,null,null,""]
[null,null,null,null,1421,1991,null,null,null,""]
[null,null,null,null,1422,1992,null,null,null,""]
[null,null,null,null,1423,1993,null,null,null,""]
[null,null,null,null,1424,1994,null,null,null,""]
[null,null,null,null,1425,1995,null,null,null,""]
[null,null,null,null,1426,1996,null,null,null,""]
[null,null,null,null,1427,1997,null,null,null,""]
[null,null,null,null,1428,1998,null,null,null,""]
[null,null,null,null,1429,1999,null,null,null,""]
[null,null,null,null,1430,2000,null,null,null,""]
[null,null,null,null,1431,2001,null,null,null,""]
[null,null,null,null,1432,2002,null,null,null,""]
[null,null,null,null,1433,2003,null,null,null,""]
[null,null,null,null,1434,2004,null,null,null,""]
[null,null,null,null,1435,2005,null,null,null,""]
[null,null,null,null,1436,2006,null,null,null,""]
[null,null,null,null,1437,2007,null,null,null,""]
[null,null,null,null,1438,2008,null,null,null,""]
[null,null,null,null,1439,2009,null,null,null,""]
[null,null,null,null,1440,2010,null,null,null,""]
[null,null,null,null,1441,2011,null,null,null,""]
[null,null,null,null,1442,2012,null,null,null,""]
[null,null,null,null,1443,2013,null,null,null,""]
[null,null,null,null,1444,2014,null,null,null,""]
[null,null,null,null,1445,2015,null,null,null,""]
[null,null,null,null,1446,2016,null,null,null,""]
[null,null,null,null,1447,2017,null,null,null,""]
[null,null,null,null,1448,2018,null,null,null,""]
[null,null,null,null,1449,2019,null,null,null,""]
[null,null,null,null,1450,2020,null,null,null,""]
[null,null,null,null,1451,2021,null,null,null,""]
[null,null,null,null,1452,2022,null,null,null,""]
[null,null,null,null,1453,2023,null,null,null,""]
[null,null,null,null,1454,2024,null,null,null,""]
[null,null,null,null,1455,2025,null,null,null,""]
[null,null,null,null,1456,2026,null,null,null,""]
[null,null,null,null,1457,2027,null,null,null,""]
[null,null,null,null,1458,2028,null,null,null,""]
[null,null,null,null,1459,2029,null,null,null,""]
[null,null,null,null,1460,2030,null,null,null,""]
[null,null,null,null,1461,2031,null,null,null,""]
[null,null,null,null,1462,2032,null,null,null,""]
[null,null,null,null,1463,2033,null,null,null,""]
[null,null,null,null,1464,2034,null,null,null,""]
[null,null,null,null,1465,2035,null,null,null,""]
[null,null,null,null,1466,2036,null,null,null,""]
[null,null,null,null,1467,2037,null,null,null,""]
[null,null,null,null,1468,2038,null,null,null,""]
[null,null,null,null,1469,2039,null,null,null,""]
[null,null,null,null,1470,2040,null,null,null,""]
[null,null,null,null,1471,2041,null,null,null,""]
[null,null,null,null,1472,2042,null,null,null,""]
[null,null,null,null,1473,2043,null,null,null,""]
[null,null,null,null,1474,2044,null,null,null,""]
[null,null,null,null,1475,2045,null,null,null,""]
[null,null,null,null,1476,2046,null,null,null,""]
[null,null,null,null,1477,2047,null,null,null,""]
[null,null,null,null,1478,2048,null,null,null,""]
[null,null,null,null,1479,2049,null,null,null,{"$f":"IF($B$2=1,E135,IF($B$2=2,F135,\"\"))","v":""}]
[null,null,null,null,1480,2050,null,null,null,""]
[null,null,null,null,1481,2051,null,null,null,""]
[null,null,null,null,1482,2052,null,null,null,""]
[null,null,null,null,1483,2053,null,null,null,""]
[null,null,null,null,1484,2054,null,null,null,""]
[null,null,null,null,1485,2055,null,null,null,""]
[null,null,null,null,1486,2056,null,null,null,""]
[null,null,null,null,1487,2057,null,null,null,""]
[null,null,null,null,1488,2058,null,null,null,""]
[null,null,null,null,1489,2059,null,null,null,""]
[null,null,null,null,1490,2060,null,null,null,""]
[null,null,null,null,1491,2061,null,null,null,""]
[null,null,null,null,1492,2062,null,null,null,""]
[null,null,null,null,1493,2063,null,null,null,""]
[null,null,null,null,1494,2064,null,null,null,""]
[null,null,null,null,1495,2065,null,null,null,""]
[null,null,null,null,1496,2066,null,null,null,""]
[null,null,null,null,1497,2067,null,null,null,""]
[null,null,null,null,1498,2068,null,null,null,""]
[null,null,null,null,1499,2069,null,null,null,""]
[null,null,null,null,1500,2070,null,null,null,""]
[null,null,null,null,1501,2071,null,null,null,""]
[null,null,null,null,1502,2072,null,null,null,""]
[null,null,null,null,1503,2073,null,null,null,""]
[null,null,null,null,1504,2074,null,null,null,""]
[null,null,null,null,1505,2075,null,null,null,""]
[null,null,null,null,1506,2076,null,null,null,""]
[null,null,null,null,1507,2077,null,null,null,""]
[null,null,null,null,1508,2078,null,null,null,""]
[null,null,null,null,1509,2079,null,null,null,""]
[null,null,null,null,1510,2080,null,null,null,""]
[null,null,null,null,1511,2081,null,null,null,""]
[null,null,null,null,1512,2082,null,null,null,""]
[null,null,null,null,1513,2083,null,null,null,""]
[null,null,null,null,1514,2084,null,null,null,""]
[null,null,null,null,1515,2085,null,null,null,""]
[null,null,null,null,1516,2086,null,null,null,""]
[null,null,null,null,1517,2087,null,null,null,""]
[null,null,null,null,1518,2088,null,null,null,""]
[null,null,null,null,1519,2089,null,null,null,""]
[null,null,null,null,1520,2090,null,null,null,""]